fUSD/lending_fUSD_20240704
["ID","MTS","AMOUNT","RATE_DAILY","PERIOD"]
[331168840,1720116640233,-3137.59487043,0.0002,4]
[331168842,1720116640244,-3602.21195516,0.0002,4]
[331168844,1720116640256,-4128.63986883,0.0002,4]
[331168847,1720116640270,-3933.36463944,0.0002,4]
[331168849,1720116640283,-3357.71839026,0.0002,4]
[331168851,1720116640294,-6757.96750055,0.0002,4]
[331168853,1720116640306,-34261.52785514,0.0002,4]
[331168856,1720116640318,-1617.592005,0.0002,4]
[331168858,1720116640330,-1363.68834929,0.0002,4]
[331168860,1720116640341,-2023.404,0.0002,4]
[331168862,1720116640353,-334.06930048,0.0002,4]
[331169062,1720116642428,-227.14852012,0.00017259,2]
[331169065,1720116642439,-448.54208023,0.00018606,2]
[331169068,1720116642451,-351.45791977,0.00018606,2]
[331169071,1720116642461,-2665.79808023,0.0002,4]
[331169075,1720116642474,-2880.424834,0.0002,4]
[331169078,1720116642486,-362.572002,0.0002,4]
[331169082,1720116642497,-10733.8579377,0.0002,4]
[331169085,1720116642509,-3250.0,0.0002,4]
[331169144,1720116642744,-784.56707336,0.0002,4]
[331169149,1720116642760,-303.27304,0.0002,4]
[331169152,1720116642772,-1062.73661376,0.0002,4]
[331169155,1720116642784,-352.98272097,0.0002,4]
[331169158,1720116642795,-30562.73000011,0.0002,4]
[331169163,1720116642805,-839.84782426,0.0002,4]
[331169166,1720116642815,-151.0,0.00020231,2]
[331169169,1720116642824,-249.75341303,0.00020257,2]
[331169172,1720116642834,-1053.44727676,0.00020321,2]
[331169175,1720116642843,-3755.399856,0.00020385,2]
[331169178,1720116642852,-4295.6905011,0.00020385,2]
[331169181,1720116642864,-2606.82483135,0.00020385,2]
[331169184,1720116642875,-540.18000005,0.00020385,2]
[331169187,1720116642887,-322.85018007,0.00020385,2]
[331169192,1720116642898,-503.4787228,0.00020385,2]
[331169195,1720116642910,-843.15773648,0.00020385,2]
[331169198,1720116642921,-1079.800005,0.00020385,2]
[331169201,1720116642932,-1634.91024808,0.00020385,2]
[331169204,1720116642942,-2906.94590222,0.00020385,2]
[331169208,1720116642951,-1704.13,0.00020386,2]
[331169210,1720116642960,-836.04,0.00020386,2]
[331169214,1720116642970,-74209.74558225,0.0002045,2]
[331169217,1720116642980,-419.07,0.00020485,2]
[331169218,1720116642989,-532.82043486,0.000205,2]
[331169220,1720116642998,-179.38266024,0.000205,2]
[331169222,1720116643008,-278.27040279,0.000205,2]
[331169224,1720116643017,-1304.0,0.00020521,2]
[331169227,1720116643026,-3223.0,0.00020521,2]
[331169229,1720116643036,-548.0,0.00020521,2]
[331169230,1720116643046,-283.0,0.00020521,2]
[331169232,1720116643055,-1988.0,0.00020521,2]
[331169235,1720116643064,-320.0,0.00020556,2]
[331169236,1720116643076,-151.0,0.00020575,2]
[331169238,1720116643085,-166.67,0.00020596,2]
[331169241,1720116643096,-327.59946225,0.00020607,2]
[331169243,1720116643105,-13122.99541998,0.00020711,2]
[331169245,1720116643114,-5810.0,0.00020748,2]
[331169247,1720116643124,-1199.0,0.00020748,2]
[331169249,1720116643134,-291.0,0.00020748,2]
[331169251,1720116643143,-38235.0,0.00020748,2]
[331169253,1720116643153,-5176.0,0.00020748,2]
[331169255,1720116643162,-1664.0,0.00020748,2]
[331169257,1720116643172,-1070.0,0.00020748,2]
[331169259,1720116643182,-636.09868956,0.00020771,2]
[331169261,1720116643192,-151.0,0.00020801,2]
[331169263,1720116643204,-162.0,0.00020801,2]
[331169265,1720116643213,-260.569,0.00020801,2]
[331169267,1720116643223,-163.275,0.00020801,2]
[331169269,1720116643235,-213.0,0.00020801,2]
[331169271,1720116643244,-190.924,0.00020801,2]
[331169273,1720116643254,-150.0,0.00020801,2]
[331169275,1720116643263,-150.0,0.00020801,2]
[331169277,1720116643275,-297.271,0.00020801,2]
[331169279,1720116643284,-160.37,0.00020801,2]
[331169281,1720116643294,-238.924,0.00020801,2]
[331169283,1720116643303,-150.0,0.00020801,2]
[331169285,1720116643313,-150.0,0.00020801,2]
[331169287,1720116643322,-185.423,0.00020801,2]
[331169289,1720116643331,-260.554,0.00020801,2]
[331169291,1720116643341,-150.0,0.00020801,2]
[331169293,1720116643350,-150.0,0.00020801,2]
[331169295,1720116643359,-150.0,0.00020801,2]
[331169297,1720116643369,-1275.0,0.00020801,2]
[331169299,1720116643378,-360.0,0.00020801,2]
[331169301,1720116643388,-1658.0,0.00020801,2]
[331169303,1720116643398,-1830.0,0.00020801,2]
[331169305,1720116643407,-166.0,0.00020801,2]
[331169307,1720116643417,-813.0,0.00020801,2]
[331169309,1720116643426,-618.0,0.00020801,2]
[331169311,1720116643436,-449.0,0.00020801,2]
[331169314,1720116643448,-443.0,0.00020801,2]
[331169316,1720116643458,-153.554,0.00020801,2]
[331169318,1720116643467,-2457.0,0.00020801,2]
[331169320,1720116643478,-151.0,0.0002092,2]
[331169322,1720116643487,-157.653021,0.00020968,2]
[331169324,1720116643496,-466.203116,0.00020976,2]
[331169326,1720116643505,-298.447476,0.00020976,2]
[331169328,1720116643515,-187.97245,0.00020976,2]
[331169330,1720116643524,-187.262738,0.00020976,2]
[331169331,1720116643533,-150.951582,0.00020976,2]
[331169333,1720116643542,-150.896188,0.00020976,2]
[331169336,1720116643552,-1398.609348,0.00020976,2]
[331169338,1720116643561,-198.964983,0.00020976,2]
[331169339,1720116643570,-410.754612,0.00020976,2]
[331169341,1720116643580,-156.052283,0.00020976,2]
[331169343,1720116643589,-150.951581,0.00020976,2]
[331169345,1720116643598,-150.896188,0.00020976,2]
[331169347,1720116643608,-932.406232,0.00020976,2]
[331169350,1720116643618,-150.951581,0.00020976,2]
[331169352,1720116643627,-298.447476,0.00020976,2]
[331169354,1720116643637,-182.060995,0.00020976,2]
[331169356,1720116643646,-222.782163,0.00020976,2]
[331169357,1720116643655,-168.287633,0.00020976,2]
[331169360,1720116643665,-932.406231,0.00020976,2]
[331169362,1720116643674,-150.896187,0.00020976,2]
[331169364,1720116643683,-200.701549,0.00020976,2]
[331169366,1720116643692,-203.183058,0.00020976,2]
[331169368,1720116643701,-225.15915694,0.00021,2]
[331169370,1720116643711,-20822.05630539,0.00021,2]
[331169372,1720116643723,-1673.18909301,0.00021,2]
[331169374,1720116643735,-1001.01518625,0.00021,2]
[331169376,1720116643744,-1413.0,0.00021,2]
[331169378,1720116643753,-112.5188382,0.00021,2]
[331169380,1720116643765,-38.4811618,0.00021,2]
[331169382,1720116643775,-151.0,0.00021,2]
[331169384,1720116643785,-151.0,0.00021,2]
[331169386,1720116643795,-151.0,0.00021,2]
[331169388,1720116643805,-203.313417,0.00021,2]
[331169390,1720116643814,-151.0,0.00021,2]
[331169392,1720116643824,-151.0,0.00021,2]
[331169394,1720116643834,-151.0,0.00021,2]
[331169396,1720116643843,-151.0,0.00021,2]
[331169398,1720116643852,-151.0,0.00021,2]
[331169401,1720116643862,-151.0,0.00021,2]
[331169403,1720116643871,-151.0,0.00021,2]
[331169405,1720116643880,-151.0,0.00021,2]
[331169407,1720116643891,-151.0,0.00021,2]
[331169409,1720116643900,-175.291586,0.00021,2]
[331169411,1720116643909,-152.968466,0.00021,2]
[331169413,1720116643919,-175.291586,0.00021,2]
[331169415,1720116643928,-322.802241,0.00021,2]
[331169417,1720116643938,-150.0,0.00021092,2]
[331169419,1720116643947,-800.0,0.00021093,2]
[331169421,1720116643957,-151.0,0.00021238,2]
[331169423,1720116643966,-151.0,0.00021238,2]
[331169425,1720116643977,-466.203116,0.00021238,2]
[331169427,1720116643986,-187.262738,0.00021238,2]
[331169429,1720116643996,-187.97245,0.00021238,2]
[331169431,1720116644005,-1398.609348,0.00021238,2]
[331169433,1720116644015,-410.754612,0.00021238,2]
[331169435,1720116644024,-932.406232,0.00021238,2]
[331169437,1720116644033,-222.782163,0.00021238,2]
[331169439,1720116644043,-932.406231,0.00021238,2]
[331169441,1720116644052,-151.0,0.00021265,2]
[331169443,1720116644062,-182.060995,0.00021326,2]
[331169445,1720116644071,-249.75341303,0.00021329,2]
[331169447,1720116644080,-284.315101,0.00021344,2]
[331169448,1720116644090,-151.0,0.00021344,2]
[331169449,1720116644099,-151.0,0.00021344,2]
[331169450,1720116644109,-151.0,0.00021344,2]
[331169451,1720116644118,-151.0,0.00021344,2]
[331169452,1720116644130,-151.0,0.00021344,2]
[331169453,1720116644140,-151.0,0.00021344,2]
[331169454,1720116644150,-151.850236,0.00021344,2]
[331169455,1720116644159,-151.0,0.00021344,2]
[331169456,1720116644169,-151.0,0.00021344,2]
[331169457,1720116644180,-2511.17209,0.00021344,2]
[331169459,1720116644190,-257.26810533,0.00021344,2]
[331169462,1720116644205,-2253.90398467,0.00021344,2]
[331169464,1720116644213,-151.0,0.00021344,2]
[331169465,1720116644224,-151.0,0.00021344,2]
[331169467,1720116644235,-151.0,0.00021344,2]
[331169469,1720116644245,-268.004995,0.00021344,2]
[331169472,1720116644254,-268.004995,0.00021344,2]
[331169473,1720116644264,-422.939878,0.00021344,2]
[331169476,1720116644275,-422.939878,0.00021344,2]
[331169478,1720116644284,-151.0,0.00021344,2]
[331169480,1720116644293,-151.0,0.00021344,2]
[331169482,1720116644303,-180.0,0.00021397,2]
[331169484,1720116644312,-151.0,0.00021437,2]
[331169486,1720116644321,-151.0,0.00021437,2]
[331169488,1720116644330,-151.0,0.00021437,2]
[331169490,1720116644339,-370.665178,0.00021437,2]
[331169492,1720116644349,-370.665178,0.00021437,2]
[331169494,1720116644358,-361.205556,0.00021437,2]
[331169496,1720116644367,-361.205556,0.00021437,2]
[331169498,1720116644377,-151.0,0.00021437,2]
[331169500,1720116644386,-151.0,0.00021437,2]
[331169502,1720116644396,-151.0,0.00021437,2]
[331169504,1720116644405,-13122.99541998,0.00021437,2]
[331169506,1720116644415,-200.0,0.00021463,2]
[331169508,1720116644424,-722.5858281,0.00021498,2]
[331169510,1720116644436,-6210.04175517,0.00021498,2]
[331169512,1720116644447,-24104.6103854,0.00021498,2]
[331169514,1720116644458,-647.94517802,0.00021498,2]
[331169518,1720116644484,-778.64096614,0.00021498,2]
[331169520,1720116644495,-4314.22533969,0.00021498,2]
[331169522,1720116644505,-151.0,0.00021498,2]
[331169524,1720116644514,-198.603845,0.00021498,2]
[331169526,1720116644525,-248.712645,0.00021498,2]
[331169528,1720116644534,-248.712645,0.00021498,2]
[331169530,1720116644543,-151.0,0.00021498,2]
[331169532,1720116644552,-151.0,0.00021498,2]
[331169534,1720116644561,-151.0,0.00021498,2]
[331169536,1720116644570,-151.0,0.00021498,2]
[331169538,1720116644579,-151.0,0.00021498,2]
[331169540,1720116644590,-466.203116,0.000215,2]
[331169542,1720116644599,-187.97245,0.000215,2]
[331169544,1720116644609,-187.262738,0.000215,2]
[331169546,1720116644618,-150.896188,0.000215,2]
[331169548,1720116644627,-1398.609348,0.000215,2]
[331169550,1720116644636,-198.964983,0.000215,2]
[331169552,1720116644645,-410.754612,0.000215,2]
[331169554,1720116644655,-156.052283,0.000215,2]
[331169556,1720116644664,-150.896188,0.000215,2]
[331169559,1720116644673,-932.406232,0.000215,2]
[331169561,1720116644683,-222.782163,0.000215,2]
[331169563,1720116644692,-932.406231,0.000215,2]
[331169565,1720116644701,-1000.0,0.000216,7]
[331169566,1720116644710,-177.67367637,0.000216,2]
[331169568,1720116644719,-151.542244,0.000216,2]
[331169570,1720116644730,-151.0,0.000216,2]
[331169573,1720116644739,-237.032207,0.000216,2]
[331169574,1720116644748,-151.0,0.000216,2]
[331169576,1720116644758,-151.0,0.000216,2]
[331169579,1720116644768,-152.329352,0.000216,2]
[331169581,1720116644777,-151.0,0.000216,2]
[331169583,1720116644788,-151.0,0.000216,2]
[331169585,1720116644797,-256.719883,0.000216,2]
[331169586,1720116644808,-151.0,0.000216,2]
[331169588,1720116644818,-447.0346,0.000216,2]
[331169591,1720116644828,-151.0,0.000216,2]
[331169593,1720116644838,-151.0,0.000216,2]
[331169595,1720116644848,-151.0,0.000216,2]
[331169597,1720116644857,-151.0,0.000216,2]
[331169599,1720116644866,-151.0,0.000216,2]
[331169601,1720116644877,-151.0,0.000216,2]
[331169603,1720116644886,-151.0,0.000216,2]
[331169605,1720116644895,-1000.0,0.000216,2]
[331169607,1720116644905,-151.0,0.000216,2]
[331169609,1720116644914,-151.0,0.000216,2]
[331169611,1720116644923,-151.0,0.000216,2]
[331169613,1720116644933,-151.0,0.000216,2]
[331169615,1720116644942,-151.0,0.000216,2]
[331169617,1720116644951,-151.0,0.000216,2]
[331169619,1720116644961,-151.0,0.000216,2]
[331169621,1720116644970,-188.821923,0.000216,2]
[331169623,1720116644981,-188.821923,0.000216,2]
[331169625,1720116644990,-151.0,0.000216,2]
[331169627,1720116644998,-151.0,0.000216,2]
[331169629,1720116645007,-151.0,0.000216,2]
[331169631,1720116645016,-156.147499,0.000216,2]
[331169633,1720116645025,-151.0,0.000216,2]
[331169635,1720116645034,-314.08282,0.000216,2]
[331169637,1720116645043,-314.08282,0.000216,2]
[331169639,1720116645053,-151.0,0.000216,2]
[331169641,1720116645063,-151.0,0.000216,2]
[331169643,1720116645072,-151.0,0.000216,2]
[331169645,1720116645081,-151.0,0.000216,2]
[331169647,1720116645090,-154.89303,0.000216,2]
[331169649,1720116645100,-154.89303,0.000216,2]
[331169651,1720116645110,-151.0,0.000216,2]
[331169653,1720116645119,-151.0,0.000216,2]
[331169655,1720116645128,-151.0,0.000216,2]
[331169657,1720116645137,-1053.44727674,0.00021606,2]
[331169659,1720116645147,-151.0,0.0002161,2]
[331169661,1720116645157,-600.0,0.00021636,2]
[331169663,1720116645167,-2906.94590221,0.00021637,2]
[331169665,1720116645177,-3342.96055066,0.00021638,2]
[331169667,1720116645191,-276.224985,0.00021638,2]
[331169670,1720116645205,-136.21432032,0.00021638,2]
[331169672,1720116645214,-493.96870967,0.00021638,2]
[331169674,1720116645228,-695.78167097,0.00021638,2]
[331169677,1720116645253,-800.0,0.00019702,2]
[331169680,1720116645262,-675.29662438,0.00021638,2]
[331169682,1720116645279,-717.75861333,0.00021638,2]
[331169684,1720116645291,-9244.08660657,0.00021638,2]
[331169686,1720116645300,-164.3,0.00021644,2]
[331169688,1720116645309,-175.96,0.00021644,2]
[331169690,1720116645319,-268.71,0.00021644,2]
[331169692,1720116645328,-334.31,0.00021644,2]
[331169694,1720116645337,-182.060995,0.00021675,2]
[331169696,1720116645347,-2000.0,0.00021699,2]
[331169698,1720116645356,-1300.0,0.000217,7]
[331169700,1720116645365,-5223.1603915,0.000217,2]
[331169702,1720116645376,-82566.18177374,0.000217,2]
[331169704,1720116645388,-19220.3891559,0.000217,2]
[331169707,1720116645406,-4476.21225213,0.000217,2]
[331169853,1720116646788,-431.6368008,0.00020368,2]
[331169855,1720116646798,-12.81154663,0.00020798,2]
[331169857,1720116646809,-359.41697324,0.00020798,2]
[331170925,1720117088870,1288.64018145,0.00011197,2]
[331170926,1720117088897,20000.0,0.00011197,2]
[331170927,1720117088922,20000.0,0.00011197,2]
[331170928,1720117088946,20000.0,0.00011197,2]
[331170929,1720117088972,20000.0,0.00011197,2]
[331170930,1720117088996,20000.0,0.00011197,2]
[331170931,1720117089017,20000.0,0.00011197,2]
[331170932,1720117089040,20000.0,0.00011197,2]
[331170933,1720117089065,20000.0,0.00011197,2]
[331170934,1720117089090,20000.0,0.00011197,2]
[331170935,1720117089118,122033.98123876,0.00011197,2]
[331170937,1720117132122,3039.0,0.00011197,2]
[331170938,1720117132146,17285.99291597,0.00011197,2]
[331170939,1720117133137,4626.5578225,0.00011197,2]
[331170940,1720117133363,19827.55343335,0.00011197,2]
[331170942,1720117140908,155.0,0.00011197,2]
[331170943,1720117148310,19827.55343335,0.00011197,2]
[331170947,1720117203898,1367.01150639,0.00011197,2]
[331170949,1720117218148,181.09928912,0.00011197,2]
[331170950,1720117221880,43217.21811634,0.00011199,2]
[331170951,1720117225194,20324.99291597,0.00011197,2]
[331170952,1720117226125,7553.87470092,0.00011197,2]
[331170953,1720117232345,411.72766835,0.00011197,2]
[331170954,1720117242136,4626.5578225,0.00011197,2]
[331170955,1720117244920,155.0,0.00011197,2]
[331170956,1720117250622,552.74071547,0.00011197,2]
[331170957,1720117250822,173.62313868,0.00011197,2]
[331170960,1720117314351,411.30883013,0.00011197,2]
[331170961,1720117328339,3116.81208306,0.00011199,2]
[331170962,1720117328505,3107.39847389,0.00011199,2]
[331170963,1720117329211,7016.6133395,0.00011197,2]
[331170964,1720117341618,8474.49775792,0.00011197,2]
[331170965,1720117351749,2831.50727589,0.00011199,2]
[331170966,1720117352148,4625.12270521,0.00011197,2]
[331170968,1720117451094,1000.89,0.00011199,2]
[331170969,1720117465796,2003.878178,0.00011199,2]
[331170970,1720117510626,520.7022797,0.00011199,2]
[331170971,1720117511724,200.14283233,0.00011143,2]
[331170972,1720117552645,299.7771014,0.00011199,2]
[331170973,1720117568340,4228.48721517,0.00011199,2]
[331170974,1720117582036,161.89543696,0.00011199,2]
[331170975,1720117584804,945.20224638,0.00011199,2]
[331170976,1720117604518,155.45813462,0.00011199,2]
[331170977,1720117614012,155.0,0.00011199,2]
[331170978,1720117635173,-158.43957202,0.00012173,2]
[331170979,1720117635195,-1899.40973453,0.00012302,2]
[331170980,1720117635216,-144.27321828,0.00012302,2]
[331170981,1720117642885,5536.93125481,0.00011199,2]
[331170982,1720117651178,-681.06569737,0.00012202,2]
[331170983,1720117651198,-292.54926927,0.00012273,2]
[331170984,1720117651219,-155.14136228,0.00013472,2]
[331170985,1720117651240,-199.49441597,0.00013472,2]
[331170986,1720117651260,-277.70531595,0.00013472,2]
[331170993,1720117747161,-436.32201151,0.00013128,2]
[331170994,1720117747183,-155.0,0.00013128,2]
[331170995,1720117747206,-613.01736691,0.00013472,2]
[331170997,1720117810342,167.79,0.00012443,2]
[331170998,1720117828820,24.67067517,0.00012302,2]
[331171003,1720117832066,-920.53157121,0.00012302,2]
[331171008,1720117832076,-235.78473759,0.00013472,2]
[331171011,1720117832085,-416.45939279,0.00013516,2]
[331171015,1720117832095,-1367.01150639,0.00013572,2]
[331171019,1720117832104,-1425.11092982,0.00013572,2]
[331171022,1720117832113,-787.94090939,0.00013736,2]
[331171024,1720117832122,-263.58284568,0.00013849,2]
[331171025,1720117832132,-173.84703855,0.00013849,2]
[331171026,1720117832142,-159.06957682,0.00013889,2]
[331171027,1720117832152,-161.08254357,0.00013889,10]
[331171028,1720117832161,-173.54,0.00013905,2]
[331171029,1720117832171,-2209.0,0.00013999,2]
[331171030,1720117832180,-1408.48,0.00014099,2]
[331171031,1720117832192,-499.99,0.00014099,2]
[331171032,1720117832202,-500.0,0.00014496,2]
[331171033,1720117832211,-150.99,0.000148,2]
[331171034,1720117832220,-1000.0,0.000149,2]
[331171035,1720117832230,-1707.36,0.000149,2]
[331171036,1720117832242,-729.13,0.00015107,2]
[331171037,1720117832252,-27972.28178551,0.00015535,2]
[331171038,1720117832261,-22629.21898645,0.00015535,2]
[331171039,1720117832271,-156.81,0.00015671,2]
[331171040,1720117832280,-524.41608381,0.0001614,2]
[331171041,1720117832289,-19626.7662442,0.00016172,2]
[331171042,1720117832299,-200.0,0.0001626,2]
[331171043,1720117832308,-529.95804437,0.00016315,2]
[331171044,1720117832317,-541.77822868,0.00016315,2]
[331171045,1720117832327,-833.52640214,0.00016329,2]
[331171046,1720117832336,-156.81,0.00016487,2]
[331171047,1720117832345,-4493.93,0.00016498,2]
[331171048,1720117832355,-150.0,0.00016638,2]
[331171049,1720117832364,-25278.91374249,0.00016808,2]
[331171050,1720117832374,-181.31,0.00016864,2]
[331171051,1720117832384,-500.0,0.00016926,2]
[331171052,1720117832395,-185.935374,0.00016986,2]
[331171053,1720117832405,-1000.0,0.00016998,2]
[331171054,1720117832414,-23900.0,0.00016999,2]
[331171055,1720117832423,-250.0,0.00016999,2]
[331171056,1720117832435,-200.0,0.00017056,2]
[331171057,1720117832444,-250.0,0.00017081,2]
[331171058,1720117832453,-1000.0,0.00017091,2]
[331171059,1720117832463,-167.12,0.00017272,2]
[331171060,1720117832472,-729.13,0.00017371,2]
[331171061,1720117832481,-6227.56607037,0.00017444,2]
[331171062,1720117832489,-161.58,0.00017486,2]
[331171063,1720117832498,-185.935374,0.00017808,2]
[331171064,1720117832507,-4229.37,0.00017983,2]
[331171065,1720117832516,-5599.94548789,0.00017999,2]
[331171066,1720117832526,-412.61839352,0.00018,2]
[331171067,1720117832535,-5386.28050123,0.00018081,2]
[331171068,1720117832544,-3393.88143666,0.00018432,2]
[331171069,1720117832553,-185.935374,0.0001863,2]
[331171070,1720117832562,-2493.91059926,0.00018648,2]
[331171071,1720117832571,-1891.46672477,0.00018759,2]
[331171072,1720117832585,-717.89169523,0.00018759,2]
[331171073,1720117832595,-258.88603077,0.00018835,2]
[331171074,1720117832604,-613.20726568,0.00018835,2]
[331171075,1720117832614,-2272.64104107,0.00018835,2]
[331171076,1720117832623,-156.35,0.00018849,30]
[331171077,1720117832632,-1902.39925616,0.00018864,2]
[331171078,1720117832641,-530.55,0.00018889,3]
[331171079,1720117832651,-253.69470968,0.00018899,2]
[331171080,1720117832661,-155.0,0.00018899,2]
[331171081,1720117832671,-364.41692002,0.00018899,2]
[331171082,1720117832680,-155.0,0.00018899,2]
[331171083,1720117832694,-475.71197158,0.00018919,2]
[331171084,1720117832703,-269.60316977,0.00018919,2]
[331171085,1720117832712,-227.14852012,0.00018919,2]
[331171086,1720117832725,-156.97678549,0.00018919,2]
[331171087,1720117832734,-1500.0,0.00018919,2]
[331171088,1720117832751,-491.51450592,0.00018919,2]
[331171089,1720117832762,-171.37886986,0.00018999,2]
[331171090,1720117832772,-297.74410483,0.00018999,2]
[331171091,1720117832782,-155.0,0.00018999,2]
[331171092,1720117832792,-221.22822774,0.00018999,2]
[331171093,1720117832802,-487.56332499,0.00018999,2]
[331171094,1720117832811,-431.06738212,0.00018999,2]
[331171095,1720117832821,-218.16420677,0.00018999,2]
[331171096,1720117832830,-366.11090361,0.00018999,2]
[331171097,1720117832839,-155.26151936,0.00018999,2]
[331171098,1720117832849,-328.85804811,0.00019069,2]
[331171099,1720117832858,-1299.61506658,0.00019069,2]
[331171100,1720117832867,-242.43380697,0.00019069,2]
[331171101,1720117832877,-209.54468271,0.00019069,2]
[331171102,1720117832887,-206.24438887,0.00019069,2]
[331171103,1720117832896,-155.38783042,0.00019077,2]
[331171104,1720117832905,-235.38273328,0.00019077,2]
[331171105,1720117832915,-200.0,0.00019106,2]
[331171106,1720117832924,-155.0,0.00019177,2]
[331171107,1720117832936,-155.0,0.00019177,2]
[331171108,1720117832946,-159.08152427,0.00019177,2]
[331171109,1720117832955,-155.29026276,0.00019177,2]
[331171110,1720117832964,-155.68456281,0.00019177,2]
[331171111,1720117832974,-205.32220319,0.00019177,2]
[331171112,1720117832983,-250.0,0.00019178,2]
[331171113,1720117832992,-1000.0,0.00019227,2]
[331171114,1720117833002,-155.0,0.00019229,2]
[331171115,1720117833012,-163.67705412,0.00019229,2]
[331171116,1720117833022,-589.16166345,0.00019229,2]
[331171117,1720117833031,-1252.01183286,0.00019229,2]
[331171118,1720117833040,-155.18743317,0.00019229,2]
[331171119,1720117833050,-202.68124914,0.00019229,2]
[331171120,1720117833059,-155.0,0.00019299,2]
[331171121,1720117833069,-661.16435023,0.00019299,2]
[331171122,1720117833079,-199.2521534,0.00019299,2]
[331171123,1720117833088,-661.16435023,0.00019299,2]
[331171124,1720117833097,-155.0,0.00019299,2]
[331171125,1720117833107,-155.0,0.00019299,2]
[331171126,1720117833116,-889.07991735,0.0001935,2]
[331171127,1720117833126,-1630.02206846,0.0001935,2]
[331171128,1720117833135,-185.935374,0.00019452,2]
[331171129,1720117833145,-729.13,0.00019635,2]
[331171130,1720117833154,-2112.56434823,0.00019661,2]
[331171131,1720117833164,-527.65571794,0.00019725,2]
[331171132,1720117833173,-1000.0,0.00019864,2]
[331171133,1720117833183,-75953.92957404,0.0002,2]
[331171134,1720117833195,-185.935374,0.00020274,2]
[331171135,1720117833205,-1708.12,0.0002046,2]
[331171136,1720117833214,-419.07,0.0002046,2]
[331171137,1720117833223,-419.07,0.0002046,2]
[331171138,1720117833232,-38235.0,0.00020516,2]
[331171139,1720117833242,-1830.0,0.00020516,2]
[331171140,1720117833251,-259.97,0.00020708,2]
[331171141,1720117833260,-448.25498222,0.00020798,2]
[331171142,1720117833270,-882.34652199,0.00020798,2]
[331171143,1720117833280,-155.0,0.00020798,2]
[331171144,1720117833290,-4755.271782,0.00020976,2]
[331171145,1720117833300,-800.0,0.00020986,2]
[331171146,1720117833310,-203.313417,0.00021,2]
[331171147,1720117833319,-185.935374,0.00021096,2]
[331171148,1720117833329,-4755.271782,0.00021238,2]
[331171149,1720117833338,-1000.0,0.00021363,2]
[331171150,1720117833347,-180.0,0.00021397,2]
[331171151,1720117833357,-854.2,0.00021419,2]
[331171152,1720117833367,-854.2,0.00021419,2]
[331171153,1720117833376,-419.07,0.00021419,2]
[331171154,1720117833387,-419.07,0.00021419,2]
[331171155,1720117833396,-926.04,0.00021419,2]
[331171156,1720117833406,-2019.28222232,0.0002142,2]
[331171157,1720117833415,-207.87944137,0.00021471,2]
[331171158,1720117833425,-419.07,0.00021499,2]
[331171159,1720117833437,-854.2,0.00021499,2]
[331171160,1720117833448,-173.98116032,0.000215,2]
[331171161,1720117833457,-320.26650415,0.000215,2]
[331171162,1720117833466,-4755.271782,0.000215,2]
[331171163,1720117833476,-449.0,0.00021571,2]
[331171164,1720117833485,-618.0,0.00021571,2]
[331171165,1720117833495,-813.0,0.00021571,2]
[331171166,1720117833505,-443.0,0.00021571,2]
[331171167,1720117833515,-166.0,0.00021571,2]
[331171168,1720117833525,-150.0,0.00021571,2]
[331171169,1720117833535,-2375.0,0.00021571,2]